fUST/lending_fUST_20251017
["ID","MTS","AMOUNT","RATE_DAILY","PERIOD"]
[391594007,1760683854788,-502.0166949,0.00044109,60]
[391594010,1760683854798,-502.50973817,0.00044109,60]
[391594012,1760683854808,-503.81019988,0.00044109,60]
[391594014,1760683854818,-502.5935369,0.00044109,60]
[391594015,1760683854828,-502.86174435,0.00044109,60]
[391594017,1760683854837,-505.09765862,0.00044109,60]
[391594019,1760683854847,-787.02,0.00044109,2]
[391594021,1760683854856,-500.0,0.00044109,60]
[391594023,1760683854866,-500.0,0.00044109,60]
[391594025,1760683854875,-500.0,0.00044109,60]
[391594027,1760683854884,-296.00716134,0.00044109,60]
[391594029,1760683854893,-509.36890501,0.00044109,60]
[391594031,1760683854903,-500.0,0.00044109,60]
[391594033,1760683854912,-500.0,0.00044109,60]
[391594035,1760683854921,-794.32,0.00044109,60]
[391594037,1760683854934,-500.0,0.00044109,60]
[391594039,1760683854943,-500.0,0.00044109,60]
[391594041,1760683854953,-500.0,0.00044109,60]
[391594051,1760683855037,-500.0,0.00044109,60]
[391594053,1760683855048,-500.65029612,0.00044109,2]
[391594055,1760683855058,-300.94700223,0.00044109,60]
[391594057,1760683855069,-836.97,0.00044109,3]
[391594059,1760683855079,-500.0,0.00044109,60]
[391594061,1760683855089,-500.0,0.00044109,60]
[391594063,1760683855099,-500.0,0.00044109,60]
[391594065,1760683855108,-500.0,0.00044109,60]
[391594067,1760683855117,-500.0,0.00044109,60]
[391594069,1760683855127,-500.0,0.00044109,60]
[391594071,1760683855137,-151.47153032,0.00044109,60]
[391594073,1760683855147,-500.0,0.00044109,60]
[391594075,1760683855157,-500.0,0.00044109,60]
[391594077,1760683855167,-500.0,0.00044109,60]
[391594079,1760683855180,-500.0,0.00044109,60]
[391594080,1760683855192,-500.0,0.00044109,60]
[391594083,1760683855202,-502.68459445,0.00044109,60]
[391594084,1760683855212,-507.88221293,0.00044109,2]
[391594086,1760683855223,-500.0,0.00044109,60]
[391594088,1760683855233,-525.57,0.00044109,60]
[391594090,1760683855242,-500.0,0.00044109,60]
[391594092,1760683855252,-736.28,0.00044109,60]
[391594094,1760683855262,-273.31186074,0.00044109,60]
[391594096,1760683855272,-151.5008036,0.00044109,60]
[391594098,1760683855281,-501.36093495,0.00044109,60]
[391594100,1760683855291,-6818.48,0.00044109,60]
[391594102,1760683855303,-500.0,0.00044109,60]
[391594104,1760683855312,-500.0,0.00044109,60]
[391594106,1760683855321,-1259.5,0.00044109,60]
[391594108,1760683855331,-500.0,0.00044109,60]
[391594110,1760683855342,-169.64574593,0.00044109,60]
[391594112,1760683855351,-500.0,0.00044109,60]
[391594114,1760683855361,-500.0,0.00044109,60]
[391594116,1760683855371,-500.0,0.00044109,60]
[391594118,1760683855382,-345.5386911,0.00044109,60]
[391594120,1760683855391,-500.0,0.00044109,60]
[391594122,1760683855401,-500.0,0.00044109,60]
[391594124,1760683855410,-500.0,0.00044109,60]
[391594126,1760683855420,-500.0,0.00044109,60]
[391594128,1760683855434,-257.21724074,0.00044164,120]
[391594130,1760683855444,-152.535861,0.00044165,60]
[391594132,1760683855453,-907.62637131,0.00044292,2]
[391594134,1760683855462,-257.21724074,0.00044356,120]
[391594136,1760683855472,-500.0,0.00044383,60]
[391594138,1760683855482,-1000.0,0.00044383,2]
[391594140,1760683855491,-500.0,0.00044383,60]
[391594142,1760683855500,-542.32,0.00044383,60]
[391594144,1760683855510,-500.0,0.00044383,60]
[391594146,1760683855519,-500.0,0.00044383,60]
[391594148,1760683855529,-996.44,0.00044383,60]
[391594150,1760683855538,-500.0,0.00044383,60]
[391594152,1760683855547,-1000.0,0.00044383,2]
[391594154,1760683855556,-729.09,0.00044383,60]
[391594156,1760683855565,-1000.0,0.00044383,120]
[391594158,1760683855575,-834.03,0.00044383,60]
[391594160,1760683855584,-450.08765524,0.00044383,60]
[391594161,1760683855596,-500.0,0.00044383,60]
[391594163,1760683855606,-500.0,0.00044383,60]
[391594165,1760683855616,-500.0,0.00044383,60]
[391594167,1760683855626,-500.0,0.00044383,60]
[391594170,1760683855636,-500.0,0.00044383,60]
[391594171,1760683855647,-733.44,0.00044383,60]
[391594173,1760683855658,-500.0,0.00044383,60]
[391594175,1760683855669,-500.0,0.00044383,60]
[391594177,1760683855683,-500.0,0.00044383,60]
[391594179,1760683855693,-500.0,0.00044383,60]
[391594181,1760683855703,-752.52,0.00044383,60]
[391594183,1760683855712,-1170.63,0.00044383,2]
[391594185,1760683855723,-787.02,0.00044383,2]
[391594187,1760683855732,-500.0,0.00044383,60]
[391594189,1760683855742,-500.0,0.00044383,60]
[391594191,1760683855751,-500.0,0.00044383,60]
[391594193,1760683855760,-500.0,0.00044383,60]
[391594195,1760683855770,-500.0,0.00044383,60]
[391594197,1760683855780,-794.32,0.00044383,60]
[391594199,1760683855790,-500.0,0.00044383,60]
[391594201,1760683855799,-500.0,0.00044383,60]
[391594203,1760683855808,-500.0,0.00044383,60]
[391594205,1760683855818,-372.20165481,0.00044383,60]
[391594207,1760683855827,-836.97,0.00044383,3]
[391594209,1760683855837,-500.0,0.00044383,60]
[391594211,1760683855847,-500.0,0.00044383,60]
[391594213,1760683855857,-500.0,0.00044383,60]
[391594215,1760683855867,-500.0,0.00044383,60]
[391594217,1760683855876,-500.0,0.00044383,60]
[391594219,1760683855886,-500.0,0.00044383,60]
[391594221,1760683855896,-500.0,0.00044383,60]
[391594223,1760683855905,-500.0,0.00044383,60]
[391594225,1760683855914,-500.0,0.00044383,60]
[391594227,1760683855924,-500.0,0.00044383,60]
[391594229,1760683855938,-500.0,0.00044383,60]
[391594231,1760683855948,-226.96284842,0.00044383,60]
[391594233,1760683855958,-525.57,0.00044383,60]
[391594234,1760683855968,-500.0,0.00044383,60]
[391594236,1760683855980,-736.28,0.00044383,60]
[391594238,1760683855989,-6818.48,0.00044383,60]
[391594240,1760683855999,-500.0,0.00044383,60]
[391594242,1760683856008,-500.0,0.00044383,60]
[391594244,1760683856018,-500.0,0.00044383,60]
[391594246,1760683856028,-500.0,0.00044383,60]
[391594248,1760683856038,-500.0,0.00044383,60]
[391594250,1760683856047,-500.0,0.00044383,60]
[391594252,1760683856056,-534.20818382,0.00044383,60]
[391594254,1760683856066,-500.0,0.00044383,60]
[391594256,1760683856076,-500.0,0.00044383,60]
[391594258,1760683856086,-500.0,0.00044383,60]
[391594260,1760683856095,-2502.19,0.000444,14]
[391594262,1760683856104,-152.535861,0.00044444,60]
[391594264,1760683856113,-1000.0,0.000445,120]
[391594266,1760683856123,-5000.0,0.000445,120]
[391594268,1760683856133,-500.0,0.0004454,60]
[391594269,1760683856143,-500.0,0.00044623,30]
[391594271,1760683856152,-500.0,0.00044657,60]
[391594273,1760683856161,-913.77230987,0.00044657,2]
[391594275,1760683856171,-500.0,0.00044657,60]
[391594277,1760683856185,-542.32,0.00044657,60]
[391594279,1760683856195,-500.0,0.00044657,60]
[391594281,1760683856204,-500.0,0.00044657,60]
[391594283,1760683856213,-996.44,0.00044657,60]
[391594285,1760683856222,-500.0,0.00044657,60]
[391594287,1760683856232,-1000.0,0.00044657,2]
[391594289,1760683856242,-729.09,0.00044657,60]
[391594291,1760683856251,-1000.0,0.00044657,120]
[391594293,1760683856260,-834.03,0.00044657,60]
[391594295,1760683856270,-500.0,0.00044657,60]
[391594297,1760683856280,-500.0,0.00044657,60]
[391594299,1760683856290,-500.0,0.00044657,60]
[391594301,1760683856299,-508.84336354,0.00044657,60]
[391594303,1760683856309,-500.0,0.00044657,60]
[391594305,1760683856318,-733.44,0.00044657,60]
[391594307,1760683856328,-500.0,0.00044657,60]
[391594309,1760683856337,-500.0,0.00044657,60]
[391594311,1760683856347,-500.0,0.00044657,60]
[391594313,1760683856356,-500.0,0.00044657,60]
[391594315,1760683856366,-752.52,0.00044657,60]
[391594316,1760683856375,-1170.63,0.00044657,2]
[391594318,1760683856384,-787.02,0.00044657,2]
[391594320,1760683856394,-500.0,0.00044657,60]
[391594322,1760683856404,-500.0,0.00044657,60]
[391594324,1760683856414,-500.0,0.00044657,60]
[391594326,1760683856423,-500.0,0.00044657,60]
[391594328,1760683856436,-500.0,0.00044657,60]
[391594330,1760683856445,-794.32,0.00044657,60]
[391594332,1760683856455,-500.0,0.00044657,60]
[391594334,1760683856464,-500.0,0.00044657,60]
[391594336,1760683856473,-164.71043543,0.00044657,60]
[391594338,1760683856482,-836.97,0.00044657,3]
[391594340,1760683856492,-500.0,0.00044657,60]
[391594342,1760683856501,-500.0,0.00044657,60]
[391594344,1760683856510,-500.0,0.00044657,60]
[391594346,1760683856519,-500.0,0.00044657,60]
[391594348,1760683856528,-500.0,0.00044657,60]
[391594350,1760683856538,-500.0,0.00044657,60]
[391594351,1760683856547,-500.0,0.00044657,60]
[391594353,1760683856557,-500.0,0.00044657,60]
[391594355,1760683856567,-500.0,0.00044657,60]
[391594358,1760683856577,-500.0,0.00044657,60]
[391594359,1760683856587,-500.0,0.00044657,60]
[391594361,1760683856597,-525.57,0.00044657,60]
[391594364,1760683856607,-500.0,0.00044657,60]
[391594366,1760683856618,-736.28,0.00044657,60]
[391594368,1760683856628,-6818.48,0.00044657,60]
[391594370,1760683856637,-500.0,0.00044657,60]
[391594372,1760683856649,-500.0,0.00044657,60]
[391594373,1760683856659,-500.0,0.00044657,60]
[391594375,1760683856669,-500.0,0.00044657,60]
[391594377,1760683856683,-500.0,0.00044657,60]
[391594379,1760683856692,-503.86798881,0.00044657,60]
[391594381,1760683856702,-500.0,0.00044657,60]
[391594383,1760683856711,-527.29693386,0.00044657,60]
[391594385,1760683856721,-500.0,0.00044657,60]
[391594387,1760683856730,-156.524901,0.00044722,60]
[391594389,1760683856739,-152.535861,0.00044722,60]
[391594398,1760683856818,-8855.11671161,0.000448,120]
[391594400,1760683856827,-437.64,0.000448,7]
[391594402,1760683856836,-494.38274997,0.00044931,60]
[391594404,1760683856851,-500.0,0.00044931,60]
[391594406,1760683856860,-542.32,0.00044931,60]
[391594408,1760683856870,-636.40093319,0.00044931,60]
[391594410,1760683856879,-500.0,0.00044931,60]
[391594412,1760683856889,-996.44,0.00044931,60]
[391594414,1760683856898,-500.0,0.00044931,60]
[391594416,1760683856907,-203.35837227,0.00044931,2]
[391594418,1760683856917,-729.09,0.00044931,60]
[391594420,1760683856927,-1000.0,0.00044931,120]
[391594421,1760683856937,-834.03,0.00044931,60]
[391594424,1760683856947,-500.0,0.00044931,60]
[391594425,1760683856958,-500.0,0.00044931,60]
[391594427,1760683856967,-500.0,0.00044931,60]
[391594429,1760683856976,-500.0,0.00044931,60]
[391594432,1760683856987,-733.44,0.00044931,60]
[391594433,1760683856996,-444.72542288,0.00044931,60]
[391594435,1760683857006,-500.0,0.00044931,60]
[391594437,1760683857016,-500.0,0.00044931,60]
[391594439,1760683857025,-500.0,0.00044931,60]
[391594441,1760683857035,-752.52,0.00044931,60]
[391594444,1760683857044,-1170.63,0.00044931,2]
[391594445,1760683857053,-787.02,0.00044931,2]
[391594448,1760683857063,-500.0,0.00044931,60]
[391594449,1760683857072,-500.0,0.00044931,60]
[391594452,1760683857082,-500.0,0.00044931,60]
[391594454,1760683857091,-500.0,0.00044931,60]
[391594456,1760683857101,-437.28832815,0.00044931,60]
[391594457,1760683857110,-794.32,0.00044931,60]
[391594460,1760683857120,-188.45415671,0.00044931,60]
[391594462,1760683857129,-500.0,0.00044931,60]
[391594463,1760683857138,-836.97,0.00044931,3]
[391594465,1760683857148,-500.0,0.00044931,60]
[391594466,1760683857157,-508.61902696,0.00044931,60]
[391594468,1760683857166,-500.0,0.00044931,60]
[391594470,1760683857176,-500.0,0.00044931,60]
[391594472,1760683857188,-500.0,0.00044931,60]
[391594474,1760683857198,-500.0,0.00044931,60]
[391594476,1760683857208,-500.0,0.00044931,60]
[391594478,1760683857217,-500.0,0.00044931,60]
[391594480,1760683857226,-500.0,0.00044931,60]
[391594482,1760683857236,-500.0,0.00044931,60]
[391594484,1760683857246,-500.0,0.00044931,60]
[391594486,1760683857255,-525.57,0.00044931,60]
[391594488,1760683857265,-500.0,0.00044931,60]
[391594489,1760683857275,-736.28,0.00044931,60]
[391594492,1760683857284,-6818.48,0.00044931,60]
[391594493,1760683857294,-500.0,0.00044931,60]
[391594495,1760683857303,-500.0,0.00044931,60]
[391594497,1760683857313,-500.0,0.00044931,60]
[391594499,1760683857322,-500.0,0.00044931,60]
[391594501,1760683857332,-415.38136422,0.00044931,60]
[391594503,1760683857341,-500.0,0.00044931,60]
[391594505,1760683857350,-500.0,0.00044931,60]
[391594507,1760683857359,-10000.0,0.00045,120]
[391594509,1760683857368,-1000.0,0.00045,120]
[391594511,1760683857377,-870.76032463,0.00045,20]
[391594513,1760683857387,-10364.92783549,0.00045,120]
[391594515,1760683857396,-50844.97536396,0.00045,120]
[391594517,1760683857405,-5099.97,0.00045,30]
[391594519,1760683857414,-1000.0,0.00045,120]
[391594521,1760683857424,-34943.0,0.00045,120]
[391594523,1760683857438,-156.524901,0.00045,60]
[391594525,1760683857448,-152.535861,0.00045,60]
[391594527,1760683857457,-500.0,0.00045205,60]
[391594529,1760683857466,-542.32,0.00045205,60]
[391594531,1760683857475,-500.0,0.00045205,60]
[391594533,1760683857485,-996.44,0.00045205,60]
[391594535,1760683857495,-500.0,0.00045205,60]
[391594537,1760683857504,-729.09,0.00045205,60]
[391594539,1760683857514,-1039.08078122,0.00045205,120]
[391594540,1760683857523,-834.03,0.00045205,60]
[391594542,1760683857533,-500.0,0.00045205,60]
[391594544,1760683857543,-500.0,0.00045205,60]
[391594546,1760683857555,-332.60671951,0.00045205,60]
[391594548,1760683857565,-500.0,0.00045205,60]
[391594550,1760683857574,-733.44,0.00045205,60]
[391594552,1760683857583,-500.0,0.00045205,60]
[391594554,1760683857592,-500.0,0.00045205,60]
[391594556,1760683857601,-500.0,0.00045205,60]
[391594558,1760683857610,-752.52,0.00045205,60]
[391594559,1760683857621,-1170.63,0.00045205,2]
[391594561,1760683857630,-787.02,0.00045205,2]
[391594563,1760683857640,-500.0,0.00045205,60]
[391594565,1760683857654,-500.0,0.00045205,60]
[391594567,1760683857664,-500.0,0.00045205,60]
[391594569,1760683857673,-500.0,0.00045205,60]
[391594571,1760683857687,-794.32,0.00045205,60]
[391594573,1760683857697,-500.0,0.00045205,60]
[391594575,1760683857707,-836.97,0.00045205,3]
[391594577,1760683857717,-500.0,0.00045205,60]
[391594579,1760683857729,-500.0,0.00045205,60]
[391594581,1760683857738,-500.0,0.00045205,60]
[391594583,1760683857748,-500.0,0.00045205,60]
[391594585,1760683857757,-500.0,0.00045205,60]
[391594586,1760683857767,-500.0,0.00045205,60]
[391594588,1760683857776,-500.0,0.00045205,60]
[391594590,1760683857785,-500.0,0.00045205,60]
[391594592,1760683857795,-500.0,0.00045205,60]
[391594594,1760683857804,-500.0,0.00045205,60]
[391594596,1760683857813,-525.57,0.00045205,60]
[391594598,1760683857822,-500.0,0.00045205,60]
[391594600,1760683857832,-736.28,0.00045205,60]
[391594602,1760683857841,-6818.48,0.00045205,60]
[391594604,1760683857851,-500.0,0.00045205,60]
[391594606,1760683857860,-500.0,0.00045205,60]
[391594608,1760683857869,-296.47785833,0.00045205,60]
[391594610,1760683857879,-500.0,0.00045205,60]
[391594611,1760683857888,-500.0,0.00045205,60]
[391594613,1760683857898,-500.0,0.00045205,60]
[391594615,1760683857907,-341.778581,0.00045259,120]
[391594617,1760683857916,-982.0,0.0004537,2]
[391594619,1760683857925,-631.0,0.0004537,2]
[391594620,1760683857937,-2162.0,0.0004537,2]
[391594622,1760683857947,-150.0,0.0004537,2]
[391594624,1760683857956,-411.0,0.0004537,2]
[391594626,1760683857966,-468.33129304,0.000454,120]
[391594628,1760683857976,-98809.7395,0.00045444,30]
[391594630,1760683857985,-1359958.8083,0.00045444,30]
[391594632,1760683857994,-500.0,0.00045479,60]
[391594634,1760683858003,-542.32,0.00045479,60]
[391594635,1760683858012,-500.0,0.00045479,60]
[391594637,1760683858021,-996.44,0.00045479,60]
[391594639,1760683858031,-500.0,0.00045479,60]
[391594641,1760683858040,-729.09,0.00045479,60]
[391594643,1760683858049,-834.03,0.00045479,60]
[391594645,1760683858059,-500.0,0.00045479,60]
[391594647,1760683858068,-500.0,0.00045479,60]
[391594649,1760683858079,-500.0,0.00045479,60]
[391594651,1760683858088,-733.44,0.00045479,60]
[391594652,1760683858097,-500.0,0.00045479,60]
[391594653,1760683858106,-500.0,0.00045479,60]
[391594654,1760683858115,-336.18796874,0.00045479,60]
[391594655,1760683858124,-752.52,0.00045479,60]
[391594656,1760683858133,-1170.63,0.00045479,2]
[391594657,1760683858143,-787.02,0.00045479,2]
[391594658,1760683858153,-500.0,0.00045479,60]
[391594659,1760683858162,-500.0,0.00045479,60]
[391594660,1760683858172,-604.13676528,0.00045479,60]
[391594661,1760683858184,-500.0,0.00045479,60]
[391594662,1760683858193,-794.32,0.00045479,60]
[391594663,1760683858203,-500.0,0.00045479,60]
[391594664,1760683858212,-836.97,0.00045479,3]
[391594665,1760683858222,-500.0,0.00045479,60]
[391594666,1760683858232,-500.0,0.00045479,60]
[391594667,1760683858241,-500.0,0.00045479,60]
[391594668,1760683858251,-500.0,0.00045479,60]
[391594669,1760683858261,-500.0,0.00045479,60]
[391594670,1760683858271,-500.0,0.00045479,60]
[391594671,1760683858280,-500.0,0.00045479,60]
[391594672,1760683858290,-500.0,0.00045479,60]
[391594673,1760683858299,-500.0,0.00045479,60]
[391594674,1760683858309,-500.0,0.00045479,60]
[391594675,1760683858318,-525.57,0.00045479,60]
[391594676,1760683858328,-500.0,0.00045479,60]
[391594677,1760683858338,-736.28,0.00045479,60]
[391594678,1760683858348,-6818.48,0.00045479,60]
[391594683,1760683858424,-500.0,0.00045479,60]
[391594685,1760683858437,-500.0,0.00045479,60]
[391594687,1760683858447,-500.0,0.00045479,60]
[391594689,1760683858457,-500.0,0.00045479,60]
[391594691,1760683858467,-500.0,0.00045479,60]
[391594693,1760683858476,-1000.0,0.000455,120]
[391594695,1760683858485,-500.0,0.00045636,60]
[391594696,1760683858495,-881.212824,0.00045665,2]
[391594698,1760683858504,-152.535861,0.00045743,30]
[391594700,1760683858513,-500.0,0.00045753,60]
[391594702,1760683858522,-542.32,0.00045753,60]
[391594704,1760683858532,-500.0,0.00045753,60]
[391594706,1760683858541,-996.44,0.00045753,60]
[391594708,1760683858551,-500.0,0.00045753,60]
[391594710,1760683858560,-729.09,0.00045753,60]
[391594712,1760683858569,-834.03,0.00045753,60]
[391594714,1760683858579,-500.0,0.00045753,60]
[391594716,1760683858589,-500.0,0.00045753,60]
[391594717,1760683858598,-449.11413024,0.00045753,60]
[391594719,1760683858607,-733.44,0.00045753,60]
[391594721,1760683858616,-448.1913806,0.00045753,60]
[391594723,1760683858626,-512.90504239,0.00045753,60]
[391594725,1760683858635,-752.52,0.00045753,60]
[391594727,1760683858645,-1170.63,0.00045753,2]
[391594729,1760683858658,-787.02,0.00045753,2]
[391594731,1760683858667,-597.31,0.00045753,60]
[391594733,1760683858676,-500.0,0.00045753,60]
[391594735,1760683858690,-500.0,0.00045753,60]
[391594737,1760683858699,-794.32,0.00045753,60]
[391594739,1760683858708,-500.0,0.00045753,60]
[391594741,1760683858720,-836.97,0.00045753,3]
[391594743,1760683858730,-500.0,0.00045753,60]
[391594745,1760683858739,-500.0,0.00045753,60]
[391594747,1760683858748,-500.0,0.00045753,60]
[391594749,1760683858757,-500.0,0.00045753,60]
[391594751,1760683858767,-500.0,0.00045753,60]
[391594753,1760683858776,-500.0,0.00045753,60]
[391594755,1760683858786,-500.0,0.00045753,60]
[391594757,1760683858796,-500.0,0.00045753,60]
[391594759,1760683858806,-500.0,0.00045753,60]
[391594761,1760683858816,-500.0,0.00045753,60]
[391594763,1760683858825,-525.57,0.00045753,60]
[391594765,1760683858834,-500.0,0.00045753,60]
[391594767,1760683858844,-736.28,0.00045753,60]
[391594769,1760683858853,-6818.48,0.00045753,60]
[391594771,1760683858863,-500.0,0.00045753,60]
[391594773,1760683858872,-500.0,0.00045753,60]
[391594774,1760683858882,-500.0,0.00045753,60]
[391594776,1760683858891,-500.0,0.00045753,60]
[391594778,1760683858900,-500.0,0.00045753,60]
[391594780,1760683858909,-100000.0,0.000459,2]
[391594782,1760683858919,-152.535861,0.00045986,30]
[391594784,1760683858928,-1000.0,0.00046,120]
[391594786,1760683858941,-30000.0,0.00046,120]
[391594788,1760683858950,-1000.0,0.00046,120]
[391594790,1760683858959,-200.0,0.00046,120]
[391594792,1760683858970,-22679.40346993,0.00046,120]
[391594794,1760683858979,-500.0,0.00046027,60]
[391594796,1760683858990,-542.32,0.00046027,60]
[391594798,1760683858999,-500.0,0.00046027,60]
[391594800,1760683859008,-996.44,0.00046027,60]
[391594802,1760683859018,-500.0,0.00046027,60]
[391594804,1760683859027,-729.09,0.00046027,60]
[391594806,1760683859036,-834.03,0.00046027,60]
[391594808,1760683859046,-504.63978428,0.00046027,60]
[391594810,1760683859055,-500.0,0.00046027,60]
[391594812,1760683859064,-733.44,0.00046027,60]
[391594814,1760683859073,-752.52,0.00046027,60]
[391594816,1760683859082,-1170.63,0.00046027,2]
[391594817,1760683859092,-787.02,0.00046027,2]
[391594819,1760683859101,-500.0,0.00046027,60]
[391594821,1760683859111,-609.41248242,0.00046027,60]
[391594823,1760683859120,-794.32,0.00046027,60]
[391594825,1760683859130,-500.0,0.00046027,60]
[391594828,1760683859141,-836.97,0.00046027,3]
[391594830,1760683859157,-500.0,0.00046027,60]
[391594833,1760683859173,-378.81101766,0.00046027,60]
[391594835,1760683859187,-500.0,0.00046027,60]
[391594837,1760683859202,-500.0,0.00046027,60]
[391594840,1760683859216,-500.0,0.00046027,60]
[391594842,1760683859232,-500.0,0.00046027,60]
[391594845,1760683859246,-500.0,0.00046027,60]
[391594847,1760683859263,-508.74921819,0.00046027,60]
[391594850,1760683859277,-500.0,0.00046027,60]
[391594852,1760683859290,-500.0,0.00046027,60]
[391594855,1760683859303,-525.57,0.00046027,60]
[391594857,1760683859318,-500.0,0.00046027,60]
[391594860,1760683859332,-736.28,0.00046027,60]
[391594862,1760683859346,-6818.48,0.00046027,60]
[391594864,1760683859356,-500.0,0.00046027,60]
[391594866,1760683859369,-500.0,0.00046027,60]
[391594869,1760683859383,-446.8887513,0.00046027,60]
[391594871,1760683859398,-258.37076676,0.00046027,60]
[391594874,1760683859412,-500.0,0.00046027,60]
[391594876,1760683859427,-174.34086581,0.00046027,2]
[391594879,1760683859445,-191.25,0.000461,14]
[391594881,1760683859457,-250.054382,0.00046143,2]
[391594883,1760683859467,-5000.0,0.00046201,30]
[391594885,1760683859480,-5000.0,0.00046201,30]
[391594888,1760683859495,-5000.0,0.00046201,30]
[391594890,1760683859509,-5000.0,0.00046201,30]
[391594892,1760683859521,-5000.0,0.00046201,30]
[391594895,1760683859535,-5000.0,0.00046201,30]
[391594897,1760683859548,-4262.84,0.00046201,30]
[391594899,1760683859559,-156.524901,0.00046229,30]
[391594901,1760683859572,-152.535861,0.00046229,30]
[391594903,1760683859585,-500.0,0.00046301,60]
[391594905,1760683859597,-542.32,0.00046301,60]
[391594908,1760683859611,-500.0,0.00046301,60]
[391594910,1760683859623,-996.44,0.00046301,60]
[391594912,1760683859635,-500.0,0.00046301,60]
[391594914,1760683859650,-729.09,0.00046301,60]
[391594917,1760683859663,-834.03,0.00046301,60]
[391594919,1760683859675,-500.0,0.00046301,60]
[391594921,1760683859687,-733.44,0.00046301,60]
[391594923,1760683859701,-752.52,0.00046301,60]
[391594925,1760683859713,-1170.63,0.00046301,2]
[391594928,1760683859726,-787.02,0.00046301,2]
[391594930,1760683859740,-500.0,0.00046301,60]
[391594932,1760683859752,-794.32,0.00046301,60]
[391594934,1760683859765,-500.0,0.00046301,60]
[391594937,1760683859777,-836.97,0.00046301,3]
[391594939,1760683859789,-500.0,0.00046301,60]
[391594941,1760683859802,-500.0,0.00046301,60]
[391594944,1760683859814,-500.0,0.00046301,60]
[391594946,1760683859826,-507.62601996,0.00046301,60]
[391594948,1760683859838,-500.0,0.00046301,60]
[391594950,1760683859850,-473.89677858,0.00046301,60]
[391594952,1760683859862,-500.0,0.00046301,60]
[391594954,1760683859873,-500.0,0.00046301,60]
[391594957,1760683859886,-525.57,0.00046301,60]
[391594959,1760683859898,-500.0,0.00046301,60]
[391594961,1760683859910,-736.28,0.00046301,60]
[391594963,1760683859922,-6818.48,0.00046301,60]
[391594966,1760683859937,-500.0,0.00046301,60]
[391594968,1760683859949,-451.16575095,0.00046301,60]
[391594970,1760683859960,-500.0,0.00046301,60]
[391594972,1760683859972,-156.524901,0.00046472,30]
[391594974,1760683859984,-152.535861,0.00046472,30]
[391594976,1760683859996,-720.0,0.00046499,90]
[391594979,1760683860008,-1000.0,0.000465,120]
[391594981,1760683860021,-500.0,0.00046575,120]
[391594983,1760683860033,-542.32,0.00046575,120]
[391594986,1760683860046,-500.0,0.00046575,120]
[391594988,1760683860060,-996.44,0.00046575,120]
[391594990,1760683860072,-500.0,0.00046575,120]
[391595002,1760683860181,-729.09,0.00046575,120]
[391595004,1760683860197,-834.03,0.00046575,120]
[391595006,1760683860207,-485.1449,0.00046575,120]
[391595008,1760683860219,-733.44,0.00046575,120]